Cogmind - Beta 16 @@@ ROGUE MODE // 2025.11.18 @ 10:59:02 Player: Jamba27 Result: Destroyed by S-10 Pest with Light Assault Rifle Performance ------------- Evolutions (0) 0 Regions Visited (1) 200 Robots Destroyed (8) 40 Value Destroyed (260) 260 Prototype IDs (0) 0 Alien Tech Used (0) 0 Bonus (0) 0 TOTAL SCORE: 500 Bonus ------- None Cogmind --------- Core Integrity 0/250 Matter 253/300 Energy 100/100 System Corruption 2% Temperature Cool (0) Movement Walking (120) Location -10/Materials Parts ------- > --- POWER (1) -------- (None) > --- PROPULSION (2) --- Aluminum Leg Aluminum Leg > --- UTILITY (2) ------ Small Storage Unit Targeting Computer > --- WEAPON (2) ------- Hammer > --- INVENTORY (8) ---- Ion Engine Aluminum Leg High-capacity Storage Unit Sensor Array Signal Interpreter Assault Rifle Assault Rifle Peak State ------------ > --- POWER ------------ Light Nuclear Core > --- PROPULSION ------- Aluminum Leg Aluminum Leg > --- UTILITY ---------- Small Storage Unit Targeting Computer > --- WEAPON ----------- Assault Rifle Hammer > --- INVENTORY -------- Ion Engine Ion Engine Aluminum Leg Aluminum Leg High-capacity Storage Unit Sensor Array Assault Rifle Assault Rifle [Rating: 9] Favorites ----------- Power Ion Engine Engine Ion Engine Power Core Light Nuclear Core Propulsion Aluminum Leg Leg Aluminum Leg Utility Small Storage Unit Storage Small Storage Unit Processor Targeting Computer Weapon Assault Rifle Ballistic Gun Assault Rifle Impact Weapon Hammer Build | -11 -10 ------- Run | Yrd Mat Slots Evolved . | . . Power . | . . Propulsion . | . . Utility . | . . Weapon . | . . Parts Attached 11 | 6 5 Power 2 | 1 1 Engine 1 | 1 . Core 1 | . 1 Reactor . | . . Propulsion 4 | 2 2 Treads . | . . Leg 4 | 2 2 Wheel . | . . Hover . | . . Flight . | . . Utility 2 | 1 1 Device . | . . Storage 1 | 1 . Processor 1 | . 1 Hackware . | . . Protection . | . . Artifact . | . . Weapon 3 | 2 1 Energy Gun . | . . Energy Cannon . | . . Ballistic Gun 2 | 2 . Ballistic Cannon . | . . Launcher . | . . Special Weapon . | . . Impact Weapon 1 | . 1 Slashing Weapon . | . . Piercing Weapon . | . . Special Melee Weapon . | . . Unidentified Prototypes . | . . Parts Lost 3 | . 3 Power 1 | . 1 Propulsion 1 | . 1 Utility . | . . Weapon 1 | . 1 Highest Loss Streak 3 | . 3 To Critical Strikes . | . . Average Backups 5 | 1 5 Power 1 | . 1 Propulsion . | . 1 Utility 1 | . 1 Weapon 1 | . 1 Tool/Special . | . . Unused Backups 6 | . 6 Power 1 | . 1 Propulsion 1 | . 1 Utility 3 | . 3 Weapon 1 | . 1 Tool/Special . | . . Average Slot Usage (%) 95 | . 95 Engine 11 | . 11 Core 1 | . 1 Leg 28 | . 28 Storage 14 | . 14 Processor 12 | . 12 Ballistic Gun 23 | . 23 Impact Weapon 3 | . 3 Peak Build Rating 9 | 6 9 Average Rating 6 | 4 7 On Entrance 3 | . 6 Avg Prop Armor Cover (%) . | . . Naked Turns . | . . Heaviest Build 14 | 14 14 Greatest Support 20 | 20 20 Greatest Overweight (x) 1 | 1 . Average Overweight (x) . | . . Largest Inventory Capacity 8 | 8 8 Average Capacity 7 | 7 8 Most Carried 8 | 2 8 Average Carried 5 | 1 5 Final Capacity 8 | 8 8 Final Carried 7 | 2 7 Class Distribution -------------------- 100% | Mutant Dominant Class ---------------- Mutant | -10/Materials Resources | -11 -10 ----------- Run | Yrd Mat Matter Collected 452 | 199 253 Remotely . | . . Salvage Created 319 | . 319 Parts 15 | . 15 Haulers Intercepted . | . . Recyclers Shooed . | . . Parts Field Recycled . | . . Retrieved Matter . | . . Parts Self-Destructed . | . . Prevented . | . . Parts Restored . | . . Kills | -11 -10 ------- Run | Yrd Mat Combat Hostiles Destroyed 8 | . 8 Melee 1 | . 1 Guns 6 | . 6 Classes Destroyed 2 | . 2 Swarmer 2 | . 2 Grunt 6 | . 6 Best Kill Streak 2 | . 2 Combat Bots Only 2 | . 2 Max Kills in Single Turn 1 | . 1 Gunslinging . | . . Exploded . | . . Melee 1 | . 1 Uniques/NPCs Destroyed . | . . Combat | -11 -10 -------- Run | Yrd Mat Hostile Shots Fired 118 | . 118 Missed 30 | . 30 Hits 88 | . 88 Projectile 88 | . 88 Damage Taken 886 | . 886 Core 253 | . 253 Absorbed by Shields . | . . Core Remaining (%) 100 | 100 . Volleys Fired 35 | . 35 Largest 2 | . 2 Hottest 40 | . 40 Shots Fired 68 | . 68 Gun 68 | . 68 Cannon . | . . Launcher . | . . Special . | . . Kinetic 68 | . 68 Thermal . | . . Explosive . | . . Electromagnetic . | . . Robot Hit Streak 10 | . 10 Robot Miss Streak 2 | . 2 Penetration Max . | . . Secondary Targets . | . . Shots Hit Robots 61 | . 61 Core Hits 14 | . 14 Critical Kills 1 | . 1 Critical Parts Destroyed 1 | . 1 Critical Strikes 2 | . 2 Destroy 1 | . 1 Smash 1 | . 1 Melee Attacks 26 | . 26 Impact 26 | . 26 Slashing . | . . Piercing . | . . Sneak Attacks . | . . Combat Hostiles . | . . Follow-up Attacks . | . . Damage Inflicted 889 | . 889 Guns 663 | . 663 Cannons . | . . Explosions . | . . Melee 226 | . 226 Ramming . | . . Kinetic 663 | . 663 Thermal . | . . Explosive . | . . Electromagnetic . | . . Impact 226 | . 226 Slashing . | . . Piercing . | . . Highest Corruption 2 | . 2 Average Corruption 2 | . 2 Corruption Purged . | . . Corruption Blocked . | . . Effects 1 | . 1 Data Loss (major) 1 | . 1 Overload Shots . | . . Overflow Damage 44 | . 44 Projectiles . | . . Explosions . | . . Melee 44 | . 44 Knockbacks . | . . Impact . | . . Kinetic . | . . Secondary . | . . Self-Inflicted Damage . | . . Shots . | . . Rammed . | . . Targets Rammed . | . . Kicked . | . . Crushed . | . . Highest Temperature 2 | . 2 Average Temperature 2 | . 2 Received Heat Transfer 270 | . 270 Siege Activations . | . . Martial Activations . | . . Shielding Activations . | . . Robots Disrupted . | . . Combat Hostiles . | . . Robots Corrupted 1 | . 1 Combat Hostiles 1 | . 1 Parts Fried 1 | . 1 Impact Corruptions 3 | . 3 Robots Melted . | . . Combat Hostiles . | . . Parts Melted . | . . Heat Transferred . | . . Parts Sabotaged . | . . Parts Stolen . | . . Parts Stripped . | . . Power Chain Reactions . | . . Alert | -11 -10 ------- Run | Yrd Mat Maximum Alert Level . | . . Low Security (%) 100 | 100 100 Level 1 . | . . Level 2 . | . . Level 3 . | . . Level 4 . | . . Level 5 . | . . High Security . | . . Max Security . | . . Peak Influence 105 | . 105 Initial . | . . Average 34 | . 39 Influence Increases 265 | . 265 Destroy 0b10 Robot/C 160 | . 160 Destroy Leader 40 | . 40 Successful Hack 5 | . 5 Disable Machine 15 | . 15 Lose Combat Pursuer 45 | . 45 Influence Decreases 166 | . 166 Time Decay 136 | . 136 Lost Part 30 | . 30 Squads Dispatched 1 | . 1 Investigation . | . . Extermination . | . . Reinforcement 1 | . 1 Assault . | . . Garrison . | . . Intercept . | . . Searches Triggered . | . . Construction Impeded . | . . Haulers Reinforced . | . . Active Scanning Responses . | . . Cargo Convoy Interrupts . | . . Stealth | -11 -10 --------- Run | Yrd Mat Distress Signals 1 | . 1 Communications Jammed . | . . Distress Signals . | . . Times Spotted 18 | . 18 Peak Tracking Total 4 | . 4 Tactical Retreats 2 | . 2 Traps | -11 -10 ------- Run | Yrd Mat Traps Triggered 1 | . 1 Indirectly . | . . Trap Hack Attempts . | . . Triggered . | . . Disarmed . | . . Reprogrammed . | . . Reused . | . . Traps Extracted . | . . Installed . | . . Triggered . | . . Machines | -11 -10 ---------- Run | Yrd Mat Machines Disabled 1 | . 1 Max in Single Turn 1 | . 1 Machines Repaired . | . . Machines Dismantled . | . . Machines Sabotaged . | . . Overloaded Fab Kills . | . . Hacking | -11 -10 --------- Run | Yrd Mat Machines Accessed 2 | . 2 Terminals 2 | . 2 Fabricators . | . . Repair Stations . | . . Recycling Units . | . . Scanalyzers . | . . Garrison Access . | . . Total Hacks 7 | . 7 Successful 3 | . 3 Failed 4 | . 4 Catastrophic . | . . Database Lockouts . | . . Manual 4 | . 4 Terminals 7 | . 7 Fabricators . | . . Repair Stations . | . . Recycling Units . | . . Scanalyzers . | . . Garrison Access . | . . Terminal Hacks 3 | . 3 Robot Analysis 1 | . 1 Emergency Access Points 1 | . 1 Terminal Index 1 | . 1 Fabricator Hacks . | . . Repair Station Hacks . | . . Recycling Unit Hacks . | . . Scanalyzer . | . . Garrison Access Hacks . | . . Unauthorized Hacks . | . . Terminals . | . . Fabricators . | . . Repair Stations . | . . Recycling Units . | . . Scanalyzers . | . . Garrison Access . | . . Data Cores Recovered . | . . Used . | . . Hacking Detections 2 | . 2 Full Trace Events . | . . Feedback Events . | . . Feedback Blocked . | . . Robot Schematics Acquired . | . . Robots Built . | . . Authchips . | . . Time . | . . Total Robot Build Rating . | . . Part Schematics Acquired . | . . Parts Built . | . . Authchips . | . . Time . | . . Total Part Build Rating . | . . Part Studies Acquired . | . . Parts Repaired . | . . Time . | . . Parts Recycled . | . . Recycled Matter . | . . Retrieved Matter . | . . Retrieved Components . | . . Parts Scanalyzed . | . . Part Schematics Acquired . | . . Parts Damaged . | . . Bothacking | -11 -10 ------------ Run | Yrd Mat Used RIF Installer . | . . Robots Hacked . | . . Non-combat . | . . Combat . | . . Robot Hacks Applied . | . . Relay Couplers Released . | . . Fabnet Peak Effective % . | . . Robots Rewired . | . . Allies Hacked . | . . Hacks Repelled . | . . Allies | -11 -10 -------- Run | Yrd Mat Total Allies . | . . Largest Group . | . . Highest-Rated Group . | . . Highest-Rated Ally . | . . Total Orders . | . . Ally Attacks . | . . Total Damage . | . . Kills . | . . Allies Corrupted . | . . Allies Melted . | . . Intel | -11 -10 ------- Run | Yrd Mat Active Infowar (turns) . | . . Robot Analysis Total 1 | . 1 Derelict Logs Recovered . | . . Drone Launches . | . . Drone Recoveries . | . . Exploration | -11 -10 ------------- Run | Yrd Mat Turns Passed 484 | 51 433 Spaces Moved 211 | 32 179 Core 4 | 4 . Treads . | . . Legs 207 | 28 179 Wheels . | . . Hover . | . . Flight . | . . Fastest Speed 50 | 50 120 Average Speed 120 | 126 120 Slowest Speed 190 | 190 120 Overloaded Moves . | . . Propulsion Burnouts . | . . Robots Hopped . | . . Potential Cave-ins . | . . Cave-ins Triggered . | . . Exploration Rate (%) 21 | 4 39 Regions Visited 1 Branch Regions . Pre-discovered Areas . | . . Known Exits Taken . | . . Unknown Exits Taken 1 | 1 . Scrap Searched . | . . Spaces Dug . | . . Terrain Destroyed . | . . Melee . | . . Projectile . | . . AOE . | . . Terrain Rammed . | . . Walls Destroyed . | . . Machines Disabled . | . . Actions | -11 -10 --------- Run | Yrd Mat Total 323 | 39 284 Wait 29 | . 29 Move 210 | 31 179 Hop . | . . Pick Up 10 | 2 8 Fast Attach 7 | 6 1 Attach 1 | . 1 Detach . | . . Swap 3 | . 3 Drop 2 | . 2 Fire 35 | . 35 Melee 26 | . 26 Ram . | . . Kick . | . . Crush . | . . Escape Stasis . | . . Rewire . | . . Trap . | . . Miscellaneous . | . . Route ------- -11/Scrapyard -10/Materials (discovered 1 exit: [*Mat]) History --------- Turn | Location | Event 22 | -11/Scrapyard | Discovered new exit (range 16) 52 | -11/Scrapyard | Entered Materials 300 | -10/Materials | Build established: Mutant 424 | -10/Materials | Core integrity fell below 50% 448 | -10/Materials | Discovered new exit (range 12) 460 | -10/Materials | Core integrity fell below 20% 485 | -10/Materials | Destroyed by S-10 Pest with Light Assault Rifle Last Messages --------------- 00413_ Destroyed Flight Unit. 00413_ S-10 Pest system corrupted by crushing effect. 00418_ S-10 Pest misfires. 00421_ S-10 Pest IFF system glitched. 00423_ S-10 Pest misfires. 00430_ Lgt. Nuclear Core destroyed. 00434_ S-10 Pest IFF system glitched. 00438_ Destroyed Flight Unit. 00438_ S-10 Pest system corrupted by crushing effect. 00438_ S-10 Pest destroyed. 00448_ EXIT=FOUND 00454_ Assault Rifle destroyed. 00463_ Aluminum Leg destroyed. 00471_ Destroyed Lgt. Ion Engine. 00471_ S-10 Pest system corrupted by crushing effect. 00472_ S-10 Pest system terminally corrupted. 00472_ Flight Unit fried. Map ----- +----------------------------------------------------+ | | | | | | | | | | | ?????????????????????????????????????????????????? | | ?????????????????????????????????????????????????? | | ?????????????????????????????????????????????????? | | ?????????????????????????????????????????????????? | | ?????????????????????????????????????????????????? | | ????????????????????????????????????????########?? | | ???????????????????????????#????????????# #?? | | ???????????????????????????# ???????????# "" #?? | | ????????????????????????#### "??????????# T" #?? | | ???????????????????????# # "Y?????????# "" #?? | | ???????????????????????# < # ""?????????# #?? | | ???????????????????????# ? ?????????# ### | | ???????????????????#+### ###+#############+### | | ??????????????????? | | ??????????????????? | | ??????????????????? | | ?????????????????????####+##### ###+########## | | ?????????????????????# ## ## ####### | | ?????????????????????# ## ## # / # | | ?????????????????????# s ## ## # # | | ?????????????????????# ] @ ]## ## # %+ | | ?????????????????????# ## ## # """ # | | ?????????????????????# % ## ## # """ # | | ?????????????????????###/##### ######## """ # | | ??????????????????????# a #??????# # | | ??????????????????????# #??????####### | | ??????????????????????# #????????????# | | ??????????????? #### #????????????# | | ???????????" #??#######????????????# | | ???????????"" #?????????????????????# | | ???????????" #?????????????????????# | | ???????????? #?????????????????????# | | ???????????? | #?????????????????????# | | ???????????? #?????????????????????# | | ????????????##+###### #?????????????????????# | | ????????????????????# #????????????#######??# | | ????????????????????# #????????????? ?## | | ???????????????????? ?????????????" """ # | | ????????????????????###+###????????????"" """ # | | ???????????????????????????????????????"" """ + | | ???????????????????????????????????????"" """ # | | ????????????????????????????????????????" """ # | | ???????????????????????????????????????? ?## | | ???????????????????????????????????????#######??# | | ?????????????????????????????????????????######## | +----------------------------------------------------+ Best States ------------- Heat Dissipation 25 Energy Generation 14 Energy Capacity 250 Matter Stores 274 Matter Capacity 300 Sight Range 16 Terrain Scan Density 10 Evasion (%) 55 Targeting Accuracy 5 Item Schematics ----------------- None Robot Schematics ------------------ None Fabricated ------------ Nothing Repaired ---------- Nothing Studied --------- None Alien Tech Used ----------------- None Achievements -------------- None Challenges ------------ None Game ------ Seed CompactSeismicBrace Manual? 0 Play Time 00:12:07 Cumulative 28.5 hours Start 2025.11.18 @ 10:18:44 End 2025.11.18 @ 10:59:02 Sessions 1 Manual Loads 0 Difficulty Rogue Special Mode None Game No. 27 Rogue 27 Adventurer 0 Explorer 0 Win Type - Total 0 Types 0/0/0/0/0/0/0/0/0/0 Lore% 19 Gallery% 27 Achievement% 18 Wizard Run 0 Options --------- Layout 1 ASCII 0 Keyboard 0 Movement Mouse Keybinds 0 Fullscreen 1 Font 24/Smallcaps Map View 50x35 Zoom Use 0% Tactical HUD 1 Map Filters NONE Filters NONE Steam 1 RUN: dedab776-72e8-4bc1-9e0c-ae2cfd7cd29c